[Event "85th Tata Steel Masters 2023"]
[White "Abdusattorov,Nodirbek"]
[Black "Aronian,Levon"]
[Site "Wijk aan Zee"]
[Round "8.1"]
[Annotator "TA"]
[Result "1/2-1/2"]
[Date "2023.01.22"]
[WhiteElo "2713"]
[BlackElo "2735"]
[PlyCount "62"]
[TimeControl "60"]

{[%evp 9,62,18,26,10,18,20,17,6,20,0,7,7,6,5,21,8,10,25,14,0,13,13,13,8,14,15,15,15,18,18,20,0,0,0,0,0,0,0,6,-4,-2,0,0,-4,0,0,0,0,0,0,0,-4,0,0,0]} 1. e4 {[%emt 0:0:17]} e5 {[%emt 0:0:5]} 2. Nf3 {[%emt 0:0:7]} Nc6 {[%emt 0:0:9]} 3. Bb5 {[%emt 0:0:6]} Nf6 {[%emt 0:0:6]} 4. d3 {[%emt 0:1:58]} Bc5 {[%emt 0:0:7]} 5. Bxc6 {[%emt 0:0:10]} dxc6 {[%emt 0:0:6]} 6. Nbd2 {[%emt 0:0:6] C65: Ruy Lopez: Berlin Defence (3...Nf6), unusual lines and 4 0-0 Bc5.} Be6 {[%emt 0:0:17]} 7. O-O {[%emt 0:1:4]} Bd6 $1 {[%emt 0:0:6][%mdl 4] now scores much better than the old 7...Nd7.} 8. Nb3 {[%emt 0:2:58]} b6 {[%emt 0:0:12] [#]} 9. Qe1 $146 {[%emt 0:9:32]} ({Predecessor:} 9. d4 Nd7 10. dxe5 Nxe5 11. Nxe5 Bxe5 12. Qh5 Bf6 13. Rd1 Qc8 14. h3 O-O 15. e5 {1-0 Vachier Lagrave,M (2784)-So,W (2770) Opera Euro Rapid Prelim 2021 (2)} )Nd7 {[%emt 0:7:8]} 10. Qc3 {[%emt 0:5:32]} c5 {[%emt 0:4:1]} 11. Ng5 {[%emt 0:0:9]} Nf8 {[%emt 0:10:53]} 12. f4 {[%emt 0:7:14]} f6 {[%emt 0:0:49]} 13. Nxe6 {[%emt 0:7:50][%mdl 64] [#] Remove Defender} Nxe6 {[%emt 0:0:8]} 14. Qc4 {[%emt 0:3:46] The position is equal.} Qd7 {[%emt 0:3:41][%cal Re5f4]} 15. f5 {[%emt 0:2:7]} Nd4 {[%emt 0:0:13]} 16. Nxd4 {[%emt 0:1:43]} cxd4 {[%emt 0:0:36] Black is weak on the light squares} 17. a4 {[%emt 0:0:4]} a5 {[%emt 0:5:56]} (17... Qf7 {with more complications.} 18. Qc6+ Ke7 19. Bd2 Qe8 )18. Bd2 {[%emt 0:3:3] Dodges Bb4} Qf7 {[%emt 0:2:54]} 19. Qc6+ {[%emt 0:8:29]} Ke7 {[%emt 0:0:21]} 20. Rf3 {[%emt 0:1:34]} Qe8 {[%emt 0:0:26]} 21. Qc4 {[%emt 0:0:8]} Qf7 {[%emt 0:0:6]} 22. Qc6 {[%emt 0:0:16]} Qe8 {[%emt 0:0:5]} 23. Qxe8+ {[%emt 0:0:4]} Raxe8 {[%emt 0:2:33]} 24. Kf2 {[%emt 0:0:14]} g5 {[%emt 0:1:4]} 25. fxg6 {[%emt 0:1:15]} hxg6 {[%emt 0:0:7]} 26. Rf1 {[%emt 0:8:23]} Ke6 {[%emt 0:12:7]} 27. h4 {[%emt 0:7:21]} f5 {[%emt 0:3:10] And now ...fxe4 would win.} ({But not} 27... Rxh4 28. Kg3 Rhh8 29. Rxf6+ Kd7 30. Rxg6 $16 )28. g3 {[%emt 0:0:24]} Ref8 {[%emt 0:2:9]} 29. Ke2 {[%emt 0:0:36]} Be7 {[%emt 0:0:53]} 30. Kd1 {[%emt 0:3:4]} c5 {[%emt 0:1:38]} 31. b3 {[%emt 0:0:17]} Rh7 {[%emt 0:0:44] An interesting draw.   Weighted Error Value: White=0.04 (flawless) /Black=0.03 (flawless)} 1/2-1/2

[Event "85th Tata Steel Masters 2023"]
[White "Caruana,Fabiano"]
[Black "Carlsen,Magnus"]
[Site "Wijk aan Zee"]
[Round "8.2"]
[Annotator "TA"]
[Result "0-1"]
[Date "2023.01.22"]
[WhiteElo "2766"]
[BlackElo "2859"]
[PlyCount "66"]
[TimeControl "60"]

{[%evp 22,66,27,27,25,12,9,22,23,16,20,16,18,4,22,-10,0,0,0,0,-12,-22,-14,-260,-255,-332,-337,-408,-392,-579,-216,-227,-225,-216,-207,-186,-185,-191,-172,-237,-237,-316,-318,-333,-336,-317,-314]} 1. e4 {[%emt 0:0:3]} e5 {[%emt 0:0:31]} 2. Nf3 {[%emt 0:0:5]} Nc6 {[%emt 0:0:4]} 3. Bb5 {[%emt 0:0:4]} a6 {[%emt 0:0:8]} 4. Ba4 {[%emt 0:0:4]} Nf6 {[%emt 0:0:6]} 5. O-O {[%emt 0:0:9]} Be7 {[%emt 0:0:7]} 6. Re1 {[%emt 0:0:20]} b5 {[%emt 0:0:6][%cal Yb7b5,Yb5b4][%mdl 32]} 7. Bb3 {[%emt 0:0:4]} O-O {[%emt 0:0:9]} 8. a4 {[%emt 0:0:12]} b4 {[%emt 0:0:9]} 9. a5 {[%emt 0:0:30]} d6 {[%emt 0:0:14]} 10. c3 {[%emt 0:0:18]} Rb8 {[%emt 0:0:42]} 11. h3 {[%emt 0:0:14]} h6 $5 {[%emt 0:10:58][%mdl 4] A promising side line.} 12. d4 {[%emt 0:0:21]} bxc3 {[%emt 0:0:37] C88: Closed Ruy Lopez: Anti-Marshall Systems.} 13. bxc3 {[%emt 0:0:9]} exd4 $1 {[%emt 0:0:11]} 14. Nxd4 {[%emt 0:0:40]} Bd7 {[%emt 0:6:18] [#] The position is equal.} 15. Bf4 $146 {[%emt 0:7:2]} ({Predecessor:} 15. Nd2 Re8 16. Bc2 Bf8 17. N2f3 Ne5 18. Nxe5 dxe5 19. Nf5 Bxf5 20. exf5 e4 21. Be3 {½-½ Nguyen,T (2627)-Wojtaszek,R (2696) POL-chT Ekstraliga 2022 (1.1)} )Ne5 {[%emt 0:12:2]} 16. Na3 {[%emt 0:7:20]} Re8 {[%emt 0:4:16]} 17. Bg3 {[%emt 0:23:49]} Bf8 $1 {[%emt 0:3:41]} 18. f4 {[%emt 0:4:27]} Nc6 {[%emt 0:0:31] White should prevent ...Nxd4.} 19. e5 {[%emt 0:8:32]} dxe5 {[%emt 0:0:44]} 20. fxe5 {[%emt 0:0:4]} Nxd4 {[%emt 0:0:9]} 21. cxd4 {[%emt 0:0:5] [#]} Bc6 $1 {[%emt 0:0:13]} 22. Bc2 $2 {[%emt 0:19:10] [#] Prevents Ne4. White does not recover from this.} (22. exf6 $2 {loses.} Rxe1+ 23. Bxe1 Rxb3 $19 )(22. Rf1 $11 Rxb3 23. Qxb3 Qxd4+ 24. Kh2 Rxe5 25. Rxf6 gxf6 26. Bxe5 Qxe5+ 27. Qg3+ Kh7 28. Qxe5 fxe5 29. g4 )(22. Rc1 Bd5 )Qd5 $1 $19 {[%emt 0:3:42][%csl Gc6,Ya5,Yg2][%cal Rd5g2]} 23. Re2 {[%emt 0:0:5] [#]} (23. Qe2 Rb4 )Rb4 $1 {[%emt 0:1:48]} 24. Kh2 {[%emt 0:10:53]} (24. Kh1 Rxd4 )Rxd4 {[%emt 0:0:52]} 25. Qb1 {[%emt 0:0:11]} (25. Qc1 $142 Ne4 26. Bxe4 Rxe4 27. Qd2 )Ne4 $2 {[%emt 0:14:52]} (25... Qxa5 $2 {is the wrong capture.} 26. Bb3 Bxa3 27. Qc2 $19 )(25... Rd2 26. Qf1 Nh5 27. Rxd2 Qxd2 )26. Bxe4 {[%emt 0:2:54]} Rxe4 {[%emt 0:0:3]} 27. Rxe4 {[%emt 0:0:5]} Qxe4 {[%emt 0:0:6]} 28. Qxe4 {[%emt 0:0:3]} Bxe4 {[%emt 0:0:13]} 29. Nc4 {[%emt 0:0:2]} Rb8 {[%emt 0:2:15]} 30. Rc1 {[%emt 0:1:2]} (30. e6 {was called for.} )Rb5 {[%emt 0:2:18]} 31. e6 {[%emt 0:0:16]} fxe6 {[%emt 0:0:53] Black has a decisive advantage.} 32. Bxc7 {[%emt 0:0:52]} Rc5 {[%emt 0:0:31]} 33. Bf4 {[%emt 0:1:42]} Bd5 {[%emt 0:0:5] Weighted Error Value: White=0.57/Black=0.32} 0-1

[Event "85th Tata Steel Masters 2023"]
[White "So,Wesley"]
[Black "Ding,Liren"]
[Site "Wijk aan Zee"]
[Round "8.3"]
[Annotator "TA"]
[Result "1/2-1/2"]
[Date "2023.01.22"]
[WhiteElo "2760"]
[BlackElo "2811"]
[PlyCount "83"]
[TimeControl "60"]

{[%evp 9,83,10,7,0,0,0,23,27,40,15,16,45,27,16,45,43,55,51,82,62,70,50,62,61,66,52,55,38,35,24,37,13,12,14,15,19,12,13,16,0,7,4,28,32,25,8,11,6,8,4,4,4,5,8,8,0,1,0,7,0,0,0,0,0,0,0,0,0,0,0,0,0,0,0,0,0]} 1. e4 {[%emt 0:1:27]} c6 {[%emt 0:0:53]} 2. d4 {[%emt 0:3:40]} d5 {[%emt 0:0:8]} 3. e5 {[%emt 0:0:6]} c5 {[%emt 0:1:44]} 4. dxc5 {[%emt 0:1:58]} e6 {[%emt 0:0:8]} 5. a3 {[%emt 0:2:50]} Bxc5 {[%emt 0:0:24]} 6. b4 {[%emt 0:1:8] B12: Caro-Kann: Advance Variation.} Be7 {[%emt 0:4:57]} 7. Nf3 {[%emt 0:6:57]} f6 {[%emt 0:11:7]} (7... a5 $5 {[%cal Ra5b4]} )8. Bb2 {[%emt 0:0:38] White has an edge. 8.c4 is vanishing.} Nd7 {[%emt 0:3:42]} 9. c4 {[%emt 0:12:30]} (9. Nbd2 {keeps more tension.} fxe5 10. Nxe5 Bf6 11. Bb5 )Nxe5 {[%emt 0:1:32]} 10. Nxe5 {[%emt 0:0:15]} fxe5 {[%emt 0:0:4] [#]} 11. Bxe5 $146 {[%emt 0:2:1]} ({Predecessor:} 11. cxd5 Nf6 12. Bxe5 exd5 13. Nc3 O-O 14. Be2 a5 15. b5 Be6 16. O-O Bd6 17. Qd4 {0-1 Mamedov,R (2703)-Karthikeyan,M (2570) Gibraltar Masters 17th 2019 (8)} )Bf6 {[%emt 0:6:3] [#]} (11... Nf6 {simplifies} 12. cxd5 Qxd5 13. Qxd5 exd5 14. Nc3 O-O )12. Nd2 $1 {[%emt 0:7:9][%cal Yf1d3]} a5 {[%emt 0:8:54] [#]} (12... Nh6 13. Bxf6 )13. b5 $1 {[%emt 0:2:49][%cal Yf1d3]} Nh6 {[%emt 0:1:41] [#]} (13... b6 14. Bd3 )14. Bxf6 {[%emt 0:4:41]} Qxf6 {[%emt 0:0:5]} 15. Bd3 {[%emt 0:1:36]} O-O {[%emt 0:6:19][%csl Gf8][%cal Rf6f2]} 16. O-O {[%emt 0:0:24]} b6 {[%emt 0:0:4]} 17. Qe2 {[%emt 0:11:13]} Bb7 {[%emt 0:2:49]} 18. Rae1 {[%emt 0:5:21]} Rae8 {[%emt 0:0:12]} 19. cxd5 {[%emt 0:4:20]} Bxd5 {[%emt 0:0:13]} 20. Bc4 {[%emt 0:5:13] Bxd5 is the strong threat.} (20. Nc4 {simplifies} Bxc4 21. Bxc4 Nf5 22. Qe5 )Qg6 {[%emt 0:7:20][%csl Gd5][%cal Rg6g2]} 21. g3 {[%emt 0:2:49]} Ng4 {[%emt 0:3:10][%cal Yg4h2] White must now prevent ...Nxh2!} 22. f3 {[%emt 0:1:15]} Nf6 {[%emt 0:0:41]} 23. Qe3 {[%emt 0:2:20]} Nd7 {[%emt 0:1:14]} 24. Qd4 {[%emt 0:2:3]} (24. f4 {keeps more tension.} Nc5 25. Be2 Rd8 26. Nc4 )Qf6 {[%emt 0:11:14]} 25. Qxf6 {[%emt 0:0:16]} gxf6 {[%emt 0:4:1]} 26. f4 {[%emt 0:0:53]} Kg7 {[%emt 0:4:24]} 27. Rd1 {[%emt 0:4:13]} Nc5 {[%emt 0:2:51] The position is equal.} 28. f5 {[%emt 0:3:59]} Rf7 {[%emt 0:7:59]} 29. fxe6 {[%emt 0:2:54]} Bxe6 {[%emt 0:0:4]} 30. Bxe6 {[%emt 0:2:12]} Rxe6 {[%emt 0:0:4]} 31. Nc4 {[%emt 0:0:24]} Ne4 {[%emt 0:0:15]} 32. Rfe1 {[%emt 0:0:42]} Rfe7 {[%emt 0:1:51]} 33. Rd3 {[%emt 0:1:38]} Kg6 {[%emt 0:2:45]} 34. Nd2 {[%emt 0:6:50]} Nxd2 {[%emt 0:1:30]} 35. Rxe6 {[%emt 0:0:4]} Rxe6 {[%emt 0:0:4]} 36. Rxd2 $11 {[%emt 0:0:3][%mdl 4096] Endgame KR-KR} Re5 {[%emt 0:0:5]} 37. a4 {[%emt 0:0:10]} Re4 {[%emt 0:0:3]} 38. Rd6 {[%emt 0:0:8]} Rxa4 {[%emt 0:0:4]} 39. Rxb6 {[%emt 0:0:10]} Rb4 {[%emt 0:0:4]} 40. Rb8 {[%emt 0:0:36]} a4 {[%emt 0:0:4]} 41. Ra8 {[%emt 0:50:5]} Rxb5 {[%emt 0:50:4] aiming for ...Rb1+.} 42. Rxa4 {[%emt 0:0:6] Weighted Error Value: White=0.06 (flawless) /Black=0.04 (flawless)} 1/2-1/2

[Event "85th Tata Steel Masters 2023"]
[White "Giri,Anish"]
[Black "Keymer,Vincent"]
[Site "Wijk aan Zee"]
[Round "8.4"]
[Annotator "TA"]
[Result "1/2-1/2"]
[Date "2023.01.22"]
[WhiteElo "2764"]
[BlackElo "2696"]
[PlyCount "55"]
[TimeControl "60"]

{[%evp 14,55,0,8,6,0,18,0,3,4,0,-2,0,0,0,-6,4,0,-5,-11,-16,0,0,-19,1,20,12,-14,41,44,54,26,30,33,25,27,47,20,47,25,27,20,22,26]} 1. e4 {[%emt 0:0:6]} e5 {[%emt 0:0:3]} 2. Nf3 {[%emt 0:0:7]} Nc6 {[%emt 0:0:3]} 3. Bc4 {[%emt 0:0:6]} Nf6 {[%emt 0:0:5]} 4. d3 {[%emt 0:0:5]} Bc5 {[%emt 0:0:3]} 5. Bg5 {[%emt 0:0:18]} h6 {[%emt 0:2:4]} 6. Bh4 {[%emt 0:0:13]} d6 {[%emt 0:4:8]} 7. c3 {[%emt 0:0:39] is now debated instead of 7.h3.} g5 {[%emt 0:8:7]} 8. Bg3 $1 {[%emt 0:0:18]} a6 {[%emt 0:1:26] C54: Giuoco Piano: 4 c3 Nf6, main lines with 5 d4 and 5 d3.} 9. Nbd2 {[%emt 0:0:57]} Ba7 {[%emt 0:0:51]} 10. O-O {[%emt 0:0:34]} O-O {[%emt 0:0:33]} 11. b4 {[%emt 0:0:21]} Nh7 {[%emt 0:4:2]} (11... b5 $5 12. Bb3 $8 a5 $11 )12. Kh1 {[%emt 0:1:11]} Kh8 {[%emt 0:1:8]} 13. a4 {[%emt 0:4:7]} f5 {[%emt 0:2:56] [#] Strongly threatening ...f4.} 14. exf5 {[%emt 0:0:14]} Bxf5 {[%emt 0:0:3] [#]} 15. Qe2 $146 {[%emt 0:8:19]} ({Predecessor:} 15. b5 Ne7 16. bxa6 bxa6 17. d4 e4 18. Ne1 Bg6 19. Nc2 Nf6 20. Ne3 a5 21. Bb3 {0-1 Sethuraman,S (2619)-Yu,Y (2750) Fufeng BRICS Masters 1st rapid 2017 (1)} )Nf6 {[%emt 0:1:59]} 16. b5 {[%emt 0:2:44]} Na5 {[%emt 0:1:36]} 17. bxa6 {[%emt 0:13:52]} bxa6 {[%emt 0:0:36]} ({But not} 17... Nxc4 18. axb7 Rb8 19. Nxc4 $14 )18. Bxa6 {[%emt 0:1:28]} Nd5 {[%emt 0:0:55]} 19. Rac1 {[%emt 0:10:50]} Re8 {[%emt 0:0:25]} 20. Rfe1 {[%emt 0:6:57]} Nf4 {[%emt 0:10:35]} (20... Bc5 $11 21. d4 exd4 22. Qxe8+ Qxe8 23. Rxe8+ Rxe8 24. Nxd4 Bg6 )21. Bxf4 $14 {[%emt 0:3:1]} exf4 {[%emt 0:0:16]} 22. Qxe8+ {[%emt 0:2:50]} Qxe8 {[%emt 0:0:4]} 23. Rxe8+ {[%emt 0:0:3]} Rxe8 {[%emt 0:0:6]} 24. d4 {[%emt 0:0:49]} g4 {[%emt 0:20:4]} 25. Ne1 {[%emt 0:3:50]} d5 {[%emt 0:11:21]} 26. Kg1 {[%emt 0:7:41]} c5 {[%emt 0:10:57]} 27. Bd3 {[%emt 0:3:3]} Bd7 {[%emt 0:1:6]} (27... Rxe1+ $2 28. Rxe1 Bxd3 29. Re8+ Kg7 30. Re7+ Kf8 31. Rxa7 $18 )28. dxc5 {[%emt 0:11:48] Weighted Error Value: White=0.08 (flawless) /Black=0.10 (very precise)} 1/2-1/2

[Event "85th Tata Steel Masters 2023"]
[White "Rapport,Richard"]
[Black "Praggnanandhaa R"]
[Site "Wijk aan Zee"]
[Round "8.5"]
[Annotator "TA"]
[Result "1-0"]
[Date "2023.01.22"]
[WhiteElo "2740"]
[BlackElo "2684"]
[PlyCount "79"]
[TimeControl "60"]

{[%evp 12,79,16,10,22,10,35,0,0,0,0,0,0,0,0,0,0,0,0,-15,0,0,0,0,21,26,30,42,27,27,27,27,38,17,14,20,18,27,43,73,60,63,108,118,91,83,89,107,185,146,172,156,354,363,352,238,238,238,239,239,239,239,239,239,239,239,228,228,244,241]} 1. e4 {[%emt 0:1:35]} e5 {[%emt 0:0:50]} 2. Nf3 {[%emt 0:0:46]} Nc6 {[%emt 0:0:5]} 3. Bc4 {[%emt 0:1:9]} Bc5 {[%emt 0:0:13]} 4. c3 {[%emt 0:0:16]} Nf6 {[%emt 0:0:13]} 5. d3 {[%emt 0:0:6]} d6 {[%emt 0:0:41]} 6. Nbd2 {[%emt 0:1:36][%cal Yb1d2,Yd2f1,Yf1g3,Yg3e2,Ye2f4][%mdl 32]} a6 {[%emt 0:3:59]} 7. Bb3 {[%emt 0:2:24]} O-O {[%emt 0:5:8] C54: Giuoco Piano: 4 c3 Nf6, main lines with 5 d4 and 5 d3.} 8. Nf1 {[%emt 0:5:6]} Ne7 {[%emt 0:14:6][%cal Yc6e7,Ye7g6,Yg6f4][%mdl 32]} 9. Bg5 $5 {[%emt 0:6:55][%mdl 4] A promising side line.} Ng6 {[%emt 0:4:15] [#] The position is equal.} 10. h4 $146 {[%emt 0:0:21][%cal Yh2h4,Yh4h5][%mdl 32]} ({Predecessor:} 10. Ne3 h6 11. Nh4 Kh7 12. Nxg6 fxg6 13. h4 Qe8 14. Qe2 a5 15. a3 Nh5 16. O-O-O {0-1 Vasilevich,I (2353)-Naumkin,I (2503) Moscow op 03rd 2007 (5)} )Re8 {[%emt 0:12:25]} 11. h5 {[%emt 0:9:50]} Nf4 {[%emt 0:0:22]} 12. Ng3 {[%emt 0:23:1] Black must now prevent h6.} h6 $1 {[%emt 0:16:59]} 13. Bxf4 {[%emt 0:0:42]} exf4 {[%emt 0:0:3]} 14. Ne2 {[%emt 0:0:15]} Ng4 {[%emt 0:4:27]} 15. Rf1 {[%emt 0:11:21]} Nf6 {[%emt 0:10:27]} 16. Qc2 {[%emt 0:6:37]} Bg4 {[%emt 0:5:1]} 17. O-O-O {[%emt 0:6:44] Threatens to win with d4.} Ba7 {[%emt 0:2:34]} ({Don't take} 17... Bxh5 18. Nxf4 c6 19. d4 $16 )18. Nxf4 {[%emt 0:7:10]} c6 {[%emt 0:0:24][%cal Yd6d5]} 19. Rde1 {[%emt 0:1:58]} Nxh5 {[%emt 0:5:17]} 20. Qd2 {[%emt 0:5:11]} Qf6 {[%emt 0:2:58]} 21. Nxh5 {[%emt 0:1:39]} Bxh5 {[%emt 0:0:2]} 22. Rh1 {[%emt 0:5:14][%cal Yf1h1,Yh1h2,Yh2g2,Yg2g7][%mdl 32]} (22. Nh2 {with more complications.} d5 23. exd5 Rxe1+ 24. Rxe1 Qxf2 25. dxc6 bxc6 26. d4 )Bxf3 {[%emt 0:3:22]} 23. gxf3 {[%emt 0:0:2]} Qxf3 {[%emt 0:1:5]} 24. Rh2 {[%emt 0:6:48] Rg1 is the strong threat.} Kf8 {[%emt 0:7:1]} 25. Bd1 {[%emt 0:0:24][%mdl 1024] White has compensation.} Qf6 {[%emt 0:0:12]} 26. f4 $1 {[%emt 0:0:12]} Ke7 {[%emt 0:5:19]} 27. d4 {[%emt 0:0:21]} Kd7 {[%emt 0:1:17]} 28. e5 {[%emt 0:0:8][%cal Ye4e5,Ye5e6][%mdl 32]} Qe7 {[%emt 0:0:34] Black is weak on the light squares} 29. Rg2 {[%emt 0:0:36] White is more active.} g6 {[%emt 0:1:11] [#]} (29... Rg8 $16 )30. f5 $1 {[%emt 0:1:41][%mdl 576] Discovered Attack} gxf5 {[%emt 0:2:20] [#]} (30... dxe5 31. fxg6 )31. Rg7 $36 {[%emt 0:1:14][%mdl 2048] Bh5 would be deadly. Black is under strong pressure.} Rf8 $2 {[%emt 0:1:58] This move loses the game for Black.} (31... dxe5 $16 {was necessary.} 32. dxe5+ Kc7 )32. e6+ $18 {[%emt 0:2:57]} (32. Qxh6 Kc7 33. e6 Kb6 $18 )Kc7 {[%emt 0:0:3]} 33. Bh5 {[%emt 0:0:3][%cal Rg7f7]} Qf6 {[%emt 0:1:10] White is clearly better.} 34. Rxf7+ {[%emt 0:0:29]} Rxf7 {[%emt 0:0:1]} 35. exf7 {[%emt 0:0:2] aiming for Re8.} Rf8 {[%emt 0:0:30]} 36. Qe3 {[%emt 0:0:59] Hoping for Qe8.} Rxf7 {[%emt 0:0:55]} (36... Qg5 $2 37. Qxg5 hxg5 38. Re8 $18 )37. Bxf7 {[%emt 0:0:4]} Qxf7 {[%emt 0:0:4]} 38. Qe7+ {[%emt 0:1:50]} Qxe7 {[%emt 0:0:2]} 39. Rxe7+ {[%emt 0:0:3]} Kb6 {[%emt 0:1:49]} 40. c4 {[%emt 0:2:8] Weighted Error Value: White=0.09 (flawless) /Black=0.15 (very precise)} 1-0

[Event "85th Tata Steel Masters 2023"]
[White "Van Foreest,Jorden"]
[Black "Erigaisi Arjun"]
[Site "Wijk aan Zee"]
[Round "8.6"]
[Annotator "TA"]
[Result "1-0"]
[Date "2023.01.22"]
[WhiteElo "2681"]
[BlackElo "2722"]
[PlyCount "107"]
[TimeControl "60"]

{[%evp 12,107,45,27,48,25,24,39,42,33,30,26,40,35,28,31,31,31,37,46,48,30,47,38,50,26,47,15,49,37,76,33,54,0,16,0,0,0,19,9,23,0,14,8,8,8,8,-79,0,0,0,-35,-37,-70,-77,-75,0,0,0,0,0,0,0,0,0,0,0,0,0,0,98,95,103,50,367,362,486,491,740,740,735,728,700,538,545,500,545,514,530,519,541,443,648,639,615,619,630,617]} 1. c4 {[%emt 0:0:19]} Nf6 {[%emt 0:0:22]} 2. Nc3 {[%emt 0:0:9]} g6 {[%emt 0:0:11]} 3. e4 {[%emt 0:0:18]} d6 {[%emt 0:0:5]} 4. d4 {[%emt 0:0:23]} Bg7 {[%emt 0:0:6]} 5. Nf3 {[%emt 0:1:0]} O-O {[%emt 0:0:7]} 6. Be2 {[%emt 0:0:5]} e5 {[%emt 0:0:16]} 7. O-O {[%emt 0:0:10]} h6 {[%emt 0:0:6] E94: King's Indian: Classical: 6 Be2 e5 7 0-0: Various Black 7th moves.} 8. Rb1 $5 {[%emt 0:4:15][%mdl 4] Leaves trodden paths.} exd4 {[%emt 0:13:7]} 9. Nxd4 {[%emt 0:0:46]} Re8 {[%emt 0:0:5] White is slightly better.} 10. f3 {[%emt 0:1:27]} c6 {[%emt 0:0:6] [#]} 11. Bf4 $146 {[%emt 0:11:6]} ({Predecessor:} 11. Kh1 d5 12. cxd5 cxd5 13. Bb5 Bd7 14. exd5 Bxb5 15. Ndxb5 a6 16. Na3 b5 17. Nc2 {0-1 Castellanos Rodriguez,R (2474)-Mamedov,R (2646) Braila GP RO Stage 5 rapid 2022 (4)} )Nh5 {[%emt 0:6:41]} 12. Be3 {[%emt 0:0:42]} f5 $1 {[%emt 0:0:18]} 13. Qd2 {[%emt 0:2:20] exf5 is the strong threat.} f4 {[%emt 0:0:53]} 14. Bf2 {[%emt 0:0:9]} (14. Bxf4 $2 Nxf4 15. Qxf4 Bxd4+ $19 )Qg5 {[%emt 0:15:52]} 15. Rfd1 {[%emt 0:2:46]} Nd7 {[%emt 0:0:8]} 16. b4 {[%emt 0:5:18]} Ne5 {[%emt 0:21:16]} 17. Kh1 {[%emt 0:2:42]} Qf6 {[%emt 0:0:14]} 18. Rbc1 {[%emt 0:7:40]} Qf7 {[%emt 0:5:15]} 19. a4 {[%emt 0:1:40]} (19. Na4 $5 {[%cal Rc4c5]} )b6 {[%emt 0:1:31]} 20. Qa2 {[%emt 0:8:25][%cal Yc4c5]} Rb8 {[%emt 0:0:27]} 21. a5 {[%emt 0:4:32]} (21. b5 $5 {[%cal Rb5c6]} c5 22. Nc6 Nxc6 23. bxc6 $14 )Bd7 $1 {[%emt 0:0:59]} 22. a6 {[%emt 0:2:12]} ({White should play} 22. Qc2 $14 )Red8 {[%emt 0:4:16]} 23. Nc2 {[%emt 0:8:11]} Be6 {[%emt 0:1:2]} 24. Nd4 {[%emt 0:0:6]} Bd7 {[%emt 0:1:3]} 25. Rd2 {[%emt 0:7:20]} Kh7 {[%emt 0:2:27]} 26. Rdd1 {[%emt 0:7:51]} Qe7 {[%emt 0:1:0]} 27. Qd2 {[%emt 0:0:50]} Rbc8 {[%emt 0:0:6]} 28. Bf1 {[%emt 0:1:56]} Be8 {[%emt 0:1:34]} 29. Nce2 {[%emt 0:2:7]} (29. b5 $11 )Qf7 {[%emt 0:0:33]} (29... c5 $17 30. Nb3 Qf7 )30. Nc3 $11 {[%emt 0:2:48]} Qg8 {[%emt 0:4:26]} (30... Nxc4 31. Bxc4 Qxc4 32. Nd5 Qxa6 33. b5 $14 )31. Qe1 {[%emt 0:2:10]} Bf7 {[%emt 0:4:35]} 32. b5 {[%emt 0:3:23]} c5 {[%emt 0:1:24]} (32... Nxc4 $2 33. bxc6 (33. Nxc6 Rd7 $18 )Bxd4 34. Bxd4 $18 )(32... Bxc4 33. Bxc4 Qxc4 34. Nce2 $16 (34. Nd5 cxd5 35. Rxc4 dxc4 $16 ))33. Nc6 {[%emt 0:0:7]} Rd7 {[%emt 0:2:36] Prevents Ne7} (33... Nxc6 $17 34. bxc6 Bxc4 )34. Nxa7 {[%emt 0:3:39][%mdl 64] [#] Deflection} Rxa7 {[%emt 0:0:7]} 35. Rxd6 {[%emt 0:0:5]} Nxc4 {[%emt 0:9:39]} (35... Bxc4 36. Rxb6 Bxf1 37. Qxf1 )36. Bxc4 {[%emt 0:0:8]} Bxc4 {[%emt 0:0:3]} 37. Rxb6 {[%emt 0:0:7]} Nf6 {[%emt 0:3:14][%cal Yh5f6,Yf6d7,Yd7e5][%mdl 32]} 38. e5 $36 {[%emt 0:4:51][%mdl 2048] White fights for an advantage.} Nd7 {[%emt 0:1:47][%csl Yb6,Ye5]} 39. Rxg6 {[%emt 0:0:56][%mdl 64] Strongly threatening Qe4. Decoy} Nxe5 $1 {[%emt 0:0:12]} (39... Kxg6 $2 40. Qe4+ Kf7 41. Qxc4+ Kf8 42. e6 $18 (42. Qxf4+ Qf7 $16 ))40. Rd6 {[%emt 0:0:24]} Re8 {[%emt 0:4:29] [#]} (40... Qf7 $11 {remains equal.} )41. Qd2 $1 $16 {[%emt 0:55:20]} (41. Bxc5 Nd3 42. Qg1 Rc7 43. Rxd3 Bxd3 $17 )Qf7 {[%emt 0:13:50]} 42. Bxc5 {[%emt 0:0:0]} (42. Qc2+ $16 Kg8 43. Bxc5 )Rc7 $2 {[%emt 0:5:1][%mdl 8192] This costs Black the game.} (42... Rd7 $14 )43. Bg1 $18 {[%emt 0:0:0] And now Nd5 would win.} (43. Bb6 Rd7 $14 )Rcc8 {[%emt 0:3:47]} 44. a7 {[%emt 0:0:0] White is clearly winning.} Be6 {[%emt 0:1:43]} (44... Qb7 $142 45. Ne4 Qxb5 46. Qxf4 Qb7 )45. Ne4 {[%emt 0:0:0]} Nc4 {[%emt 0:1:14]} 46. Qd3 {[%emt 0:0:0] Intending Nf6+ and mate.} Bf5 {[%emt 0:0:13]} 47. Ra6 {[%emt 0:0:0]} Bxe4 {[%emt 0:4:42]} 48. fxe4 {[%emt 0:0:0] Black must now prevent e5+.} Ne5 {[%emt 0:0:5]} 49. Qf1 {[%emt 0:0:0] aiming for Rxc8.} Rxc1 {[%emt 0:1:16]} 50. Qxc1 {[%emt 0:0:0]} f3 {[%emt 0:0:23] ( -> ...fxg2+)} 51. Qf1 {[%emt 0:0:0]} (51. a8=B $2 fxg2+ 52. Kxg2 Qf3# )fxg2+ {[%emt 0:3:41]} (51... Rc8 $142 52. a8=Q (52. a8=R $2 {is the wrong capture.} Rc1 $19 )Rc1 )52. Kxg2 {[%emt 0:0:0] Hoping for Qxf7.} Qb7 {[%emt 0:0:6]} 53. Qf5+ {[%emt 0:0:0]} Kg8 {[%emt 0:0:35]} 54. Bd4 {[%emt 0:0:0] Artfully played by Van Foreest.   Weighted Error Value: White=0.20 (precise) /Black=0.27 (precise)} 1-0